fUSD/lending_fUSD_20241122
["ID","MTS","AMOUNT","RATE_DAILY","PERIOD"]
[343043747,1732306270859,-500.0,0.00094999,120]
[343043748,1732306270868,-500.0,0.00094999,120]
[343043749,1732306270878,-500.0,0.00094999,120]
[343043750,1732306270887,-618.37554053,0.00094999,120]
[343043751,1732306270896,-857.92,0.00094999,120]
[343043752,1732306270908,-857.92,0.00094999,120]
[343043753,1732306270918,-857.92,0.00094999,120]
[343043754,1732306270927,-857.92,0.00094999,120]
[343043755,1732306270937,-857.92,0.00094999,120]
[343043756,1732306270946,-857.92,0.00094999,120]
[343043757,1732306270955,-857.92,0.00094999,120]
[343043758,1732306270964,-857.92,0.00094999,120]
[343043759,1732306270974,-857.92,0.00094999,120]
[343043760,1732306270983,-857.92,0.00094999,120]
[343043761,1732306270993,-857.92,0.00094999,120]
[343043762,1732306271002,-857.92,0.00094999,120]
[343043763,1732306271011,-857.92,0.00094999,120]
[343043764,1732306271020,-857.92,0.00094999,120]
[343043765,1732306271030,-857.92,0.00094999,120]
[343043766,1732306271039,-857.92,0.00094999,120]
[343043767,1732306271048,-857.92,0.00094999,120]
[343043768,1732306271057,-858.12,0.00094999,120]
[343043769,1732306271067,-3217913.00389071,0.00095,120]
[343043770,1732306271239,-1113.20194739,0.00095,120]
[343043771,1732306361102,500.0,0.0005,120]
[343043772,1732306568338,500.0,0.00054795,120]
[343043774,1732306667684,158.81,0.00041096,2]
[343043775,1732306667915,158.81,0.00057078,120]
[343043777,1732307108384,299182.38,0.00013,2]
[343043778,1732307108411,2772851.29132642,0.00013,2]
[343043779,1732307108436,498931.17,0.00013,2]
[343043780,1732307108464,22000.0,0.00013,2]
[343043781,1732307108487,1100.0,0.00013,2]
[343043782,1732307108516,1837652.89115631,0.00013,2]
[343043783,1732307108546,4441749.44678644,0.00013,2]
[343043784,1732307108572,25000.0,0.00013,2]
[343043785,1732307108600,9650.0,0.00013,2]
[343043786,1732307108625,2000000.0,0.00013,2]
[343043787,1732307108654,2000000.0,0.00013,2]
[343043788,1732307108681,20000000.0,0.00013,2]
[343043789,1732307108707,25000.0,0.00013,2]
[343043790,1732307108731,1112.9004929,0.00013,2]
[343043791,1732307108753,10000.0,0.00013,2]
[343043792,1732307108778,25000.0,0.00013,2]
[343043793,1732307108803,9716200.98361631,0.00013,2]
[343043794,1732307110117,26179.14706649,0.000264,2]
[343043795,1732307110502,15871.94584187,0.000154,2]
[343043796,1732307112089,7903.38033474,0.00050267,30]
[343043797,1732307112124,15457.94502571,0.00025,2]
[343043798,1732307141665,47220.86749548,0.00050267,30]
[343043799,1732307144006,23798.12660836,0.00037,2]
[343043800,1732307160786,-2057.0,0.00045,2]
[343043801,1732307162483,22514.09033874,9.8e-05,2]
[343043802,1732307165603,14910.18834608,0.0003,2]
[343043803,1732307198489,15466.52501698,0.00011888,2]
[343043804,1732307208142,22465.07633815,0.00050267,2]
[343043805,1732307219549,28968.63105917,0.00050267,2]
[343043806,1732307219579,-276.8,0.00045,2]
[343043807,1732307237620,205.0,9.8e-05,2]
[343043808,1732307250536,340.05808047,0.00050267,2]
[343043809,1732307252791,1249.02841511,0.00050267,2]
[343043810,1732307270366,16335.68935845,0.00050267,4]
[343043811,1732307272981,152.70567665,0.00050267,30]
[343043812,1732307275809,20999.60982832,0.00050267,2]
[343043813,1732307281492,4696003.82595206,0.00013,2]
[343043814,1732307283169,28130.25704805,0.00027,2]
[343043815,1732307288716,15394.26471469,0.0003,2]
[343043816,1732307290470,24189.42845984,0.0002,2]
[343043817,1732307293955,13434.42673928,0.000275,2]
[343043818,1732307293987,16787.75438606,0.0002445,2]
[343043819,1732307300551,959.01833132,0.00050267,2]
[343043822,1732307302807,3631.30203725,0.00050267,2]
[343043823,1732307310514,16164.86227601,0.000129,2]
[343043824,1732307313616,1000.92121161,0.00050267,2]
[343043825,1732307314619,5517.57368721,0.00050267,2]
[343043826,1732307316838,519936.3737199,0.000476,30]
[343043828,1732307341911,550.0,0.00044619,5]
[343043829,1732307342653,350.0,0.00047365,5]
[343043831,1732307374144,-2854.89484,0.0004462,2]
[343043841,1732307395498,-47354.06263303,0.0004462,2]
[343043855,1732307431873,-7373.53168783,0.00045,2]
[343043856,1732307431884,-3516.17829719,0.00045,2]
[343043857,1732307431896,-1791.00546868,0.00045,2]
[343043858,1732307432110,-8048.13399609,0.00045,2]
[343043873,1732307437970,-3668.54533611,0.00045,2]
[343043874,1732307437982,-601.24933996,0.00045,2]
[343043875,1732307438005,-716.69654827,0.00045,2]
[343043876,1732307438017,-19992.13961119,0.00045,2]
[343043877,1732307438027,-93.16201204,0.00053496,2]
[343043878,1732307438038,-56.83798796,0.00053496,2]
[343043879,1732307438047,-449.53623002,0.000649,120]
[343043880,1732307438057,-2237.7499093,0.00065,120]
[343043881,1732307438066,-152.93,0.0006525,120]
[343043882,1732307438075,-3041.81632515,0.000666,120]
[343043883,1732307438084,-150.0,0.0007,100]
[343043884,1732307438094,-150.0,0.000705,101]
[343043885,1732307438103,-197.0,0.00071,102]
[343043886,1732307438112,-158.81,0.00073059,120]
[343043887,1732307438122,-152.965,0.0007523,120]
[343043888,1732307438132,-449.53623001,0.00078065,120]
[343043889,1732307438141,-2825.07488722,0.0008,30]
[343043890,1732307438153,-1773.57511278,0.0008,30]
[343043891,1732307438162,-2299.51877353,0.0008,12]
[343043892,1732307438172,-1488.0,0.000824,120]
[343043893,1732307438186,-4430.49624693,0.000849,30]
[343043894,1732307438197,-4468.19375307,0.000849,30]
[343043895,1732307438206,-283.5,0.000849,30]
[343043896,1732307438215,-150.99,0.000849,30]
[343043897,1732307438224,-576.9,0.00085,120]
[343043898,1732307438233,-152.979,0.0008521,120]
[343043899,1732307438243,-2000.35225165,0.000869,120]
[343043900,1732307438252,-161.16,0.00088021,2]
[343043901,1732307438264,-150.91,0.00088074,120]
[343043902,1732307438274,-500.0,0.00088182,120]
[343043904,1732307438284,-250.0,0.00088806,120]
[343043906,1732307438293,-158.81,0.00089041,120]
[343043907,1732307438302,-1052.90320302,0.00089146,120]
[343043910,1732307438312,-150.0,0.00089192,30]
[343043911,1732307438321,-640.5,0.00089212,120]
[343043913,1732307438331,-500.0,0.00089548,2]
[343043916,1732307438340,-1000.0,0.00089724,120]
[343043919,1732307438349,-250.0,0.00089784,120]
[343043922,1732307438358,-4586.97,0.00089843,30]
[343043924,1732307438367,-163.15,0.0008987,30]
[343043926,1732307438377,-450.0,0.0008992,120]
[343043928,1732307438385,-165.33,0.0008992,30]
[343043930,1732307438394,-404.84,0.00089939,120]
[343043932,1732307438403,-284.83013218,0.0009,120]
[343043934,1732307438413,-159.65,0.00090463,2]
[343043936,1732307438421,-159.65,0.00090486,2]
[343043938,1732307438430,-159.65,0.0009051,2]
[343043940,1732307438439,-159.65,0.00090534,2]
[343043942,1732307438448,-159.65,0.00090558,2]
[343043944,1732307438457,-159.65,0.00090582,2]
[343043946,1732307438466,-159.65,0.00090605,2]
[343043948,1732307438475,-159.65,0.00090629,2]
[343043950,1732307438485,-159.65,0.00090653,2]
[343043952,1732307438494,-159.65,0.00090677,2]
[343043954,1732307438503,-433.47,0.00090678,60]
[343043956,1732307438512,-159.65,0.00090701,2]
[343043958,1732307438521,-159.65,0.00090725,2]
[343043960,1732307438531,-159.65,0.00090748,2]
[343043962,1732307438540,-159.65,0.00090772,2]
[343043964,1732307438549,-159.65,0.00090796,2]
[343043965,1732307438558,-159.65,0.0009082,2]
[343043966,1732307438567,-293.871,0.0009082,120]
[343043967,1732307438577,-159.65,0.00090844,2]
[343043968,1732307438586,-159.65,0.00090867,2]
[343043969,1732307438595,-159.65,0.00090891,2]
[343043970,1732307438604,-159.65,0.00090915,2]
[343043971,1732307438613,-162.09505919,0.0009123,15]
[343043972,1732307438623,-153.73867367,0.0009123,120]
[343043973,1732307438632,-449.53623001,0.0009123,120]
[343043974,1732307438642,-6875.35996706,0.0009123,120]
[343043975,1732307438655,-4001.78733294,0.0009123,120]
[343043976,1732307438664,-595.5,0.00091288,10]
[343043977,1732307438675,-181.112305,0.00091298,120]
[343043978,1732307438684,-695.96,0.0009132,120]
[343043979,1732307438694,-263.441,0.0009132,60]
[343043980,1732307438705,-500.0,0.00091329,120]
[343043981,1732307438714,-500.0,0.00091329,120]
[343043982,1732307438724,-500.0,0.00091329,120]
[343043983,1732307438734,-500.0,0.00091329,120]
[343043984,1732307438744,-500.0,0.00091329,120]
[343043985,1732307438753,-500.0,0.00091329,120]
[343043986,1732307438763,-567.042237,0.00091329,120]
[343043987,1732307438772,-500.0,0.00091329,120]
[343043988,1732307438783,-500.0,0.00091329,120]
[343043989,1732307438793,-500.0,0.00091329,120]
[343043990,1732307438803,-500.0,0.00091329,120]
[343043991,1732307438812,-500.0,0.00091329,120]
[343043992,1732307438821,-500.0,0.00091329,120]
[343043993,1732307438831,-500.0,0.00091329,120]
[343043994,1732307438840,-500.0,0.00091329,120]
[343043995,1732307438849,-500.0,0.00091329,120]
[343043996,1732307438859,-1000.0,0.00091329,120]
[343043997,1732307438869,-1972.7393,0.0009133,120]
[343043998,1732307438879,-68636.58450082,0.0009133,30]
[343043999,1732307438891,-2941.75206259,0.0009133,30]
[343044001,1732307439737,-1640.833,0.0009133,30]
[343044002,1732307439748,-1655.59,0.0009133,30]
[343044003,1732307439882,-500.0,0.00091329,120]
[343044004,1732307439892,-183.28551806,0.0009133,30]
[343044005,1732307441861,150.0,0.000553,5]
[343044021,1732307442992,-500.0,0.00091329,120]
[343044022,1732307443001,-500.0,0.00091329,120]
[343044023,1732307443011,-500.0,0.00091329,120]
[343044024,1732307443020,-622.51532395,0.0009133,30]
[343044025,1732307443032,-4261.4320098,0.0009133,30]
[343044026,1732307443054,-6055.88590621,0.0009133,30]
[343044027,1732307443159,-4586.96644826,0.0009133,30]
[343044040,1732307445821,-500.0,0.00091329,120]
[343044041,1732307445831,-500.0,0.00091329,120]
[343044042,1732307445840,-500.0,0.00091329,120]
[343044043,1732307445850,-500.0,0.00091329,120]
[343044044,1732307445860,-9415.15523031,0.0009133,30]
[343044045,1732307445869,-786.2575,0.0009133,120]
[343044046,1732307445878,-31568.9838254,0.00091419,13]
[343044047,1732307445888,-31568.9838254,0.0009142,13]
[343044048,1732307445897,-500.0,0.00091428,120]
[343044049,1732307445907,-500.0,0.00091428,120]
[343044050,1732307445916,-500.0,0.00091428,120]
[343044051,1732307445925,-500.0,0.00091428,120]
[343044052,1732307445935,-500.0,0.00091428,120]
[343044053,1732307445944,-500.0,0.00091428,120]
[343044054,1732307445954,-500.0,0.00091429,120]
[343044055,1732307445963,-501.85843796,0.00091429,120]
[343044056,1732307445971,-500.0,0.00091429,120]
[343044057,1732307445981,-490.37923864,0.00091429,120]
[343044058,1732307445991,-500.0,0.00091429,120]
[343044059,1732307446000,-316.40367647,0.00091429,120]
[343044060,1732307446009,-500.0,0.00091429,120]
[343044061,1732307446018,-1135.17871672,0.00091429,120]
[343044062,1732307446028,-500.0,0.00091429,120]
[343044063,1732307446038,-500.0,0.00091429,120]
[343044064,1732307446047,-500.0,0.00091429,120]
[343044065,1732307446056,-500.0,0.00091429,120]
[343044066,1732307446065,-500.0,0.00091429,120]
[343044067,1732307446074,-500.0,0.00091429,120]
[343044068,1732307446084,-500.0,0.00091429,120]
[343044069,1732307446093,-500.0,0.00091429,120]
[343044070,1732307446103,-500.84872696,0.00091429,120]
[343044072,1732307446112,-500.0,0.00091429,120]
[343044073,1732307446121,-502.23458671,0.00091429,120]
[343044074,1732307446131,-500.59151395,0.00091429,120]
[343044075,1732307446140,-500.0,0.00091429,120]
[343044076,1732307446149,-500.0,0.00091429,120]
[343044077,1732307446159,-500.0,0.00091429,120]
[343044078,1732307446169,-500.0,0.00091429,120]
[343044079,1732307446181,-500.0,0.00091429,120]
[343044080,1732307446190,-500.96149587,0.00091429,120]
[343044081,1732307446199,-500.0,0.00091429,120]
[343044082,1732307446209,-221.69945941,0.00091429,120]
[343044083,1732307446219,-500.0,0.00091429,120]
[343044084,1732307446229,-500.0,0.00091429,120]
[343044085,1732307446239,-501.96027095,0.00091429,120]
[343044086,1732307446249,-641.58744902,0.00091429,120]
[343044087,1732307446259,-500.0,0.00091429,120]
[343044088,1732307446270,-500.0,0.00091429,120]
[343044089,1732307446279,-500.0,0.00091429,120]
[343044090,1732307446289,-500.0,0.00091429,120]
[343044091,1732307446298,-500.0,0.00091429,120]
[343044092,1732307446395,-500.0,0.00091429,120]
[343044093,1732307446405,-500.0,0.00091429,120]
[343044094,1732307446414,-500.8502047,0.00091429,120]
[343044095,1732307446423,-500.0,0.00091429,120]
[343044096,1732307446431,-500.0,0.00091429,120]
[343044097,1732307446440,-500.0,0.00091429,120]
[343044098,1732307446450,-500.0,0.00091429,120]
[343044099,1732307446458,-500.0,0.00091429,120]
[343044100,1732307446467,-500.0,0.00091429,120]
[343044101,1732307446476,-500.0,0.00091429,120]
[343044102,1732307446486,-500.0,0.00091429,120]
[343044103,1732307446494,-500.0,0.00091429,120]
[343044104,1732307446503,-290.43078658,0.00091429,120]
[343044105,1732307446513,-500.0,0.00091429,120]
[343044106,1732307446522,-500.0,0.00091429,120]
[343044107,1732307446531,-500.0,0.00091429,30]
[343044108,1732307446541,-500.0,0.00091429,120]
[343044109,1732307446550,-500.0,0.00091429,120]
[343044110,1732307446559,-500.0,0.00091429,120]
[343044111,1732307446567,-500.0,0.00091429,120]
[343044112,1732307446578,-500.0,0.00091429,120]
[343044113,1732307446587,-500.0,0.00091429,120]
[343044114,1732307446597,-500.0,0.00091429,120]
[343044115,1732307446607,-500.0,0.00091429,120]
[343044116,1732307446616,-500.0,0.00091429,120]
[343044117,1732307446626,-500.0,0.00091429,120]
[343044118,1732307446635,-502.2293319,0.00091429,120]
[343044119,1732307446644,-500.0,0.00091429,120]
[343044120,1732307446654,-500.0,0.00091429,120]
[343044121,1732307446663,-501.01411237,0.00091429,120]
[343044122,1732307446672,-500.0,0.00091429,120]
[343044123,1732307446682,-500.0,0.00091429,120]
[343044124,1732307446691,-500.0,0.00091429,120]
[343044125,1732307446701,-523.12465017,0.00091429,120]
[343044126,1732307446711,-500.0,0.00091429,120]
[343044127,1732307446720,-500.0,0.00091429,120]
[343044128,1732307446731,-500.0,0.00091429,120]
[343044129,1732307446740,-500.0,0.00091429,120]
[343044130,1732307446758,-500.0,0.00091429,120]
[343044131,1732307446769,-500.0,0.00091429,120]
[343044132,1732307446779,-500.0,0.00091429,120]
[343044133,1732307446790,-500.0,0.00091429,120]
[343044134,1732307446800,-500.0,0.00091429,120]
[343044135,1732307446811,-500.0,0.00091429,120]
[343044136,1732307446822,-500.0,0.00091429,120]
[343044137,1732307446832,-500.0,0.00091429,120]
[343044138,1732307446843,-500.0,0.00091429,120]
[343044139,1732307446853,-501.85371962,0.00091429,120]
[343044140,1732307446863,-500.0,0.00091429,120]
[343044141,1732307446873,-500.0,0.00091429,120]
[343044142,1732307446882,-500.0,0.00091429,120]
[343044143,1732307446892,-500.0,0.00091429,120]
[343044144,1732307446901,-500.0,0.00091429,120]
[343044145,1732307446910,-288.0,0.00091429,120]
[343044146,1732307446919,-500.0,0.00091429,120]
[343044147,1732307446930,-500.0,0.00091429,120]
[343044148,1732307446940,-538.90540339,0.00091429,120]
[343044149,1732307446949,-500.0,0.00091429,120]
[343044150,1732307446958,-500.0,0.00091429,120]
[343044151,1732307446967,-500.0,0.00091429,120]
[343044152,1732307446976,-500.0,0.00091429,120]
[343044153,1732307446986,-500.0,0.00091429,120]
[343044154,1732307446996,-500.63103175,0.00091429,120]
[343044155,1732307447006,-610.07955827,0.00091429,120]
[343044156,1732307447017,-500.0,0.00091429,120]
[343044157,1732307447027,-500.0,0.00091429,120]
[343044158,1732307447038,-500.0,0.00091429,120]
[343044159,1732307447047,-500.0,0.00091429,120]
[343044160,1732307447057,-500.0,0.00091429,120]
[343044161,1732307447066,-500.0,0.00091429,120]
[343044162,1732307447076,-500.0,0.00091429,120]
[343044163,1732307447086,-500.0,0.00091429,120]
[343044164,1732307447096,-500.0,0.00091429,120]
[343044165,1732307447105,-500.0,0.00091429,120]
[343044166,1732307447115,-500.0,0.00091429,120]
[343044167,1732307447127,-500.0,0.00091429,120]
[343044168,1732307447137,-500.0,0.00091429,120]
[343044169,1732307447146,-500.0,0.00091429,120]
[343044170,1732307447157,-500.0,0.00091429,120]
[343044171,1732307447166,-500.0,0.00091429,120]
[343044172,1732307447178,-500.0,0.00091429,120]
[343044173,1732307447188,-500.0,0.00091429,120]
[343044174,1732307447198,-500.0,0.00091429,120]
[343044175,1732307447208,-500.0,0.00091429,120]
[343044176,1732307447219,-500.0,0.00091429,120]
[343044177,1732307447229,-500.0,0.00091429,120]
[343044178,1732307447238,-500.0,0.00091429,120]
[343044179,1732307447248,-500.0,0.00091429,120]
[343044180,1732307447257,-505.40510383,0.00091429,120]
[343044181,1732307447267,-500.0,0.00091429,120]
[343044182,1732307447276,-500.0,0.00091429,120]
[343044183,1732307447287,-500.0,0.00091429,120]
[343044184,1732307447298,-500.0,0.00091429,120]
[343044185,1732307447311,-500.0,0.00091429,120]
[343044186,1732307447320,-500.0,0.00091429,120]
[343044187,1732307447331,-500.0,0.00091429,120]
[343044188,1732307447341,-500.0,0.00091429,120]
[343044189,1732307447351,-500.0,0.00091429,120]
[343044190,1732307447361,-500.0,0.00091429,120]
[343044191,1732307447370,-500.0,0.00091429,120]
[343044192,1732307447380,-500.0,0.00091429,120]
[343044193,1732307447389,-412.77,0.00091429,120]
[343044194,1732307447399,-500.0,0.00091429,120]
[343044195,1732307447408,-500.0,0.00091429,120]
[343044196,1732307447417,-500.0,0.00091429,120]
[343044197,1732307447426,-500.0,0.00091429,120]
[343044198,1732307447435,-500.0,0.00091429,120]
[343044199,1732307447445,-500.0,0.00091429,120]
[343044200,1732307447455,-500.0,0.00091429,120]
[343044201,1732307447464,-35.14990462,0.00091429,120]
[343044202,1732307447488,-187.34069941,0.00091329,120]
[343044203,1732307447498,-464.85009538,0.00091429,120]
[343044204,1732307447507,-500.0,0.00091429,120]
[343044205,1732307447517,-500.0,0.00091429,120]
[343044206,1732307447526,-508.3647145,0.00091429,120]
[343044207,1732307447537,-500.0,0.00091429,120]
[343044208,1732307447546,-500.0,0.00091429,120]
[343044209,1732307447555,-500.0,0.00091429,120]
[343044210,1732307447565,-500.0,0.00091429,120]
[343044211,1732307447575,-500.0,0.00091429,120]
[343044212,1732307447584,-500.0,0.00091429,120]
[343044213,1732307447593,-500.0,0.00091429,120]
[343044214,1732307447603,-500.0,0.00091429,120]
[343044215,1732307447612,-500.0,0.00091429,120]
[343044216,1732307447622,-500.0,0.00091429,120]
[343044217,1732307447631,-500.0,0.00091429,120]
[343044218,1732307447641,-500.0,0.00091429,120]
[343044219,1732307447650,-500.0,0.00091429,120]
[343044220,1732307447659,-302.18382489,0.00091429,120]
[343044221,1732307447669,-500.0,0.00091429,120]
[343044222,1732307447678,-500.0,0.00091429,120]
[343044223,1732307447688,-500.0,0.00091429,120]
[343044224,1732307447698,-500.0,0.00091429,120]
[343044225,1732307447707,-501.85452427,0.00091429,120]
[343044226,1732307447717,-500.0,0.00091429,120]
[343044227,1732307447726,-500.0,0.00091429,120]
[343044228,1732307447735,-500.0,0.00091429,120]
[343044229,1732307447745,-500.0,0.00091429,120]
[343044230,1732307447755,-500.0,0.00091429,120]
[343044231,1732307447764,-500.0,0.00091429,120]
[343044232,1732307447774,-500.0,0.00091429,120]
[343044233,1732307447784,-500.0,0.00091429,120]
[343044234,1732307447793,-501.19284854,0.00091429,120]
[343044235,1732307447803,-500.0,0.00091429,120]
[343044236,1732307447812,-534.91,0.00091429,120]
[343044237,1732307447822,-500.0,0.00091429,120]
[343044238,1732307447831,-500.0,0.00091429,120]
[343044239,1732307447841,-500.0,0.00091429,120]
[343044240,1732307447850,-500.0,0.00091429,120]
[343044241,1732307447860,-500.0,0.00091429,120]
[343044242,1732307447869,-500.0,0.00091429,120]
[343044243,1732307447878,-5.36997766,0.00091429,120]
[343044244,1732307447890,-494.63002234,0.00091429,120]
[343044245,1732307447900,-522.3731731,0.00091429,120]
[343044246,1732307447909,-184.85680456,0.00091429,120]
[343044247,1732307447936,-368.73319544,0.00091429,120]
[343044248,1732307447946,-500.0,0.00091429,120]
[343044249,1732307447955,-500.0,0.00091429,120]
[343044250,1732307447964,-480.96750823,0.00091429,120]
[343044251,1732307448057,-19.03249177,0.00091429,120]
[343044252,1732307448067,-255.95668416,0.00091429,120]
[343044253,1732307469904,500.0,0.00054795,120]
[343044255,1732307474881,156.3025,0.000498,120]
[343044256,1732307475113,156.3025,0.00053722,120]
[343044258,1732307644183,250.0,0.00031,2]
[343044259,1732307645275,300.0,0.00033,2]
[343044265,1732308305137,150.0,0.00034548,10]
[343044266,1732308362982,500.0,0.00054795,120]
[343044267,1732308400099,-154.77,0.00041096,2]
[343044268,1732308400121,-91.12967119,0.00057078,120]
[343044269,1732308515761,245.0,0.00015,2]
[343044270,1732308516431,220.0,0.00015,2]
[343044271,1732308546116,-63.64032881,0.00057078,120]
[343044272,1732308546137,-156.3025,0.00057644,120]
[343044273,1732308546158,-291.223,0.00061466,120]
[343044274,1732308546181,-156.3025,0.00061566,120]
[343044275,1732308546203,-152.964,0.0006525,120]
[343044276,1732308546233,-1226.547478,0.000666,120]
[343044277,1732308546259,-154.77,0.00073059,120]
[343044278,1732308546284,-5373.71,0.00073059,2]
[343044279,1732308546312,-152.978,0.0007596,120]
[343044280,1732308546338,-9999.99,0.0007725,2]
[343044281,1732308546362,-1832.600003,0.0008,120]
[343044282,1732308546386,-299.99,0.0008,120]
[343044283,1732308546409,-3214.0,0.0008,2]
[343044284,1732308546434,-1102.0,0.000844,11]
[343044285,1732308546461,-250.0,0.00084886,120]
[343044286,1732308546487,-1067.31,0.0008538,120]
[343044287,1732308546512,-200.0,0.0008538,30]
[343044288,1732308546542,-162.34,0.00085428,2]
[343044289,1732308546569,-1030.27,0.00085536,120]
[343044290,1732308546594,-250.0,0.00086625,120]
[343044291,1732308546623,-153.039,0.0008667,120]
[343044292,1732308546649,-17784.45679019,0.00087702,30]
[343044293,1732308568138,-29016.66222,0.0008,120]
[343044312,1732308631979,-1200.0,0.00079999,120]
[343044313,1732308631988,-8532.42203657,0.0008,120]
[343044314,1732308632038,-5120.45707378,0.0008,120]
[343044315,1732308632048,-9979.51050096,0.0008,120]
[343044316,1732308632058,-1300.0,0.00081777,120]
[343044317,1732308632068,-3998.40496452,0.00087702,30]
[343044318,1732308632093,-296.651,0.00087702,30]
[343044319,1732308632204,-41600.48724529,0.00087702,30]
[343044320,1732308632214,-1892.17321,0.00087799,2]
[343044321,1732308632223,-150.0,0.00087899,20]
[343044322,1732308632233,-200.0,0.000879,120]
[343044323,1732308632243,-334.13,0.000879,30]
[343044324,1732308632252,-6746.97,0.000879,30]
[343044325,1732308632262,-999.99,0.000879,20]
[343044326,1732308632271,-162.33,0.000879,30]
[343044327,1732308632280,-953.36,0.000879,30]
[343044328,1732308632290,-250.0,0.00087946,120]
[343044329,1732308632301,-164.87,0.00087946,120]
[343044330,1732308632310,-157.55,0.00087967,120]
[343044331,1732308632320,-150.99,0.00087967,30]
[343044332,1732308632329,-11646.45,0.00087967,30]
[343044333,1732308632339,-1905.33,0.00087967,30]
[343044334,1732308632349,-204.91,0.00087984,120]
[343044335,1732308632358,-1000.0,0.00088098,20]
[343044336,1732308632368,-500.0,0.0008813,120]
[343044337,1732308632377,-235.097,0.00088299,120]
[343044338,1732308632386,-150.83,0.00088449,120]
[343044339,1732308632396,-1000.0,0.0008888,120]
[343044340,1732308632405,-3838.5904,0.000889,2]
[343044341,1732308632414,-248.0,0.0008892,120]
[343044342,1732308632424,-3009.66166257,0.00089,120]
[343044343,1732308632434,-154.77,0.00089041,120]
[343044344,1732308632444,-500.0,0.00089186,120]
[343044345,1732308632453,-274.05,0.00089209,120]
[343044346,1732308632462,-478.03,0.00089366,120]
[343044347,1732308632472,-23900.0,0.00089376,30]
[343044348,1732308632482,-660.5875,0.0008951,2]
[343044349,1732308632492,-153.73867357,0.000899,120]
[343044350,1732308632502,-153.73867357,0.000899,120]
[343044351,1732308632510,-153.73867357,0.00089909,120]
[343044352,1732308632520,-1000.0,0.00089999,30]
[343044353,1732308632529,-4631.0,0.0009,120]
[343044355,1732308632540,-500.0,0.00090187,30]
[343044357,1732308632551,-300.0,0.00090187,120]
[343044359,1732308632562,-153.73867357,0.00090464,120]
[343044361,1732308632571,-1573.69504,0.0009051,120]
[343044362,1732308632580,-165.44571502,0.00090918,15]
[343044363,1732308632590,-218.31,0.0009097,120]
[343044364,1732308632600,-181.92,0.0009097,120]
[343044365,1732308632609,-151.6,0.0009097,120]
[343044366,1732308632619,-8871.3914286,0.0009098,120]
[343044367,1732308632631,-153.73867357,0.00091018,120]
[343044368,1732308632640,-261.97,0.00091109,120]
[343044369,1732308632650,-2500.0,0.00091119,30]
[343044370,1732308632659,-310.87306152,0.0009113,2]
[343044371,1732308632669,-2004.0,0.00091189,40]
[343044372,1732308632679,-543.22,0.00091208,120]
[343044374,1732308632688,-452.69,0.00091208,120]
[343044376,1732308632697,-377.24,0.00091208,120]
[343044378,1732308632706,-314.37,0.00091208,120]
[343044380,1732308632716,-31288.1659681,0.00091218,13]
[343044382,1732308632725,-500.0,0.00091218,120]
[343044383,1732308632735,-172.05,0.00091218,120]